bitfinex/quotes_SOLUSD_20220129
["timestamp","ask_amount","ask_price","bid_price","bid_amount"]
[1643447581494,6.0,95.984,95.931,103.4]
[1643447581695,0.25,95.989,95.932,0.25]
[1643447582296,0.25,95.989,95.931,103.4]
[1643447582498,11.3902657,96.0,95.931,103.4]
[1643447583701,11.3902657,96.0,95.932,0.25]
[1643447583898,6.0,95.99,95.931,103.4]
[1643447584296,0.25,95.989,95.931,103.4]
[1643447584497,6.0,95.99,95.931,103.4]
[1643447584902,6.0,95.99,95.932,0.25]
[1643447585900,11.3902657,96.0,95.932,0.25]
[1643447586103,11.3902657,96.0,95.933,103.4]
[1643447586403,11.3902657,96.0,95.936,1.44831414]
[1643447586801,12.36703598,96.0,95.947,103.4]
[1643447587005,12.36703598,96.0,95.957,6.0]
[1643447587203,12.36703598,96.0,95.958,103.4]
[1643447587401,12.36703598,96.0,95.958,106.07789581]
[1643447587601,12.36703598,96.0,95.958,2.67789581]
[1643447587800,12.36703598,96.0,95.933,1.44831414]
[1643447588001,12.36703598,96.0,95.931,1.44831414]
[1643447588300,0.25,95.999,95.932,1.44831414]
[1643447588508,6.0,95.99,95.935,1.44831414]
[1643447588702,6.0,95.99,95.938,1.44831414]
[1643447588905,6.0,95.99,95.937,1.44831414]
[1643447589303,6.0,95.99,95.938,0.25]
[1643447589503,6.0,95.99,95.945,6.0]
[1643447589903,6.0,95.99,95.946,103.65]
[1643447590103,12.36703598,96.0,95.946,103.65]
[1643447590403,12.36703598,96.0,95.957,103.4]
[1643447590602,12.36703598,96.0,95.946,0.25]
[1643447590904,12.36703598,96.0,95.951,6.0]
[1643447591106,12.36703598,96.0,95.952,103.4]
[1643447591306,12.36703598,96.0,95.952,103.65]
[1643447592306,12.36703598,96.0,95.953,62.07]
[1643447592507,4.48654919,96.0,95.963,171.47]
[1643447592908,4.48654919,96.0,95.971,103.4]
[1643447593110,24.2105,96.057,95.973,62.07]
[1643447593409,1.41828145,96.084,95.982,62.07]
[1643447593608,6.0,96.074,95.985,62.07]
[1643447593811,6.0,96.074,95.984,6.0]
[1643447593812,6.0,96.074,95.987,62.07]
[1643447594009,6.0,96.081,95.998,62.07]
[1643447594209,6.0,96.081,96.0,62.07]
[1643447594411,0.260389,96.098,96.002,62.07]
[1643447594609,0.260389,96.098,96.014,62.07]
[1643447594809,0.260389,96.098,96.013,103.4]
[1643447594810,0.260389,96.098,96.015,103.65]
[1643447595011,0.260389,96.098,96.025,6.0]
[1643447595510,0.260389,96.098,96.026,103.4]
[1643447595709,6.260389,96.098,96.026,103.65]
[1643447595910,6.260389,96.098,96.026,0.25]
[1643447596512,0.25,96.097,96.026,0.25]
[1643447596713,0.25,96.097,96.011,103.4]
[1643447596714,0.25,96.097,96.012,25.0588]
[1643447596911,0.25,96.097,96.012,128.4588]
[1643447597813,0.25,96.097,96.012,128.2088]
[1643447598014,0.25,96.097,96.012,103.4]
[1643447598413,6.260389,96.098,96.023,103.4]
[1643447599212,6.260389,96.098,96.024,24.4747]
[1643447599413,6.260389,96.098,96.025,103.4]
[1643447599814,6.260389,96.098,96.026,0.25]
[1643447600214,0.25,96.097,96.026,0.25]
[1643447600413,0.00134373,96.042,96.025,103.4]
[1643447602413,0.00134373,96.042,96.027,103.4]
[1643447602812,0.00134373,96.042,96.028,0.25]
[1643447603014,0.00134373,96.042,96.027,103.4]
[1643447603513,0.00134373,96.042,96.028,0.25]
[1643447604715,0.00134373,96.042,96.011,103.4]
[1643447607122,0.00134373,96.042,96.012,0.25]
[1643447607322,0.00134373,96.042,95.992,103.4]
[1643447607824,0.00134373,96.042,95.993,0.25]
[1643447608024,0.00134373,96.042,95.992,103.4]
[1643447609624,0.00134373,96.042,95.993,0.25]
[1643447616455,0.00134373,96.042,95.992,103.4]
[1643447616657,0.00134373,96.042,95.993,0.25]
[1643447627967,0.00134373,96.042,95.992,103.4]
[1643447629371,0.00134373,96.042,95.993,0.25]
[1643447632176,0.00134373,96.042,95.992,0.25]
[1643447632775,0.00134373,96.042,95.976,1.44831414]
[1643447632976,0.00134373,96.042,95.968,1.44831414]
[1643447633177,0.00134373,96.042,95.971,103.4]
[1643447633475,0.00134373,96.042,95.972,0.25]
[1643447634076,0.00134373,96.042,95.973,103.4]
[1643447634277,0.00134373,96.042,95.974,0.25]
[1643447640510,0.00134373,96.042,95.983,6.0]
[1643447640710,0.00134373,96.042,95.984,126.4931]
[1643447640913,0.00134373,96.042,95.984,126.7431]
[1643447641110,0.00134373,96.042,95.984,126.4931]
[1643447641312,0.00134373,96.042,95.985,0.25]
[1643447642611,0.00134373,96.042,95.995,103.4]
[1643447642814,0.00134373,96.042,95.996,0.25]
[1643447643110,0.00134373,96.042,95.997,103.4]
[1643447643311,0.00134373,96.042,95.998,0.25]
[1643447644514,0.00134373,96.042,96.008,103.4]
[1643447644715,0.00134373,96.042,96.01,103.4]
[1643447644913,0.00134373,96.042,96.013,103.4]
[1643447645414,0.00134373,96.042,96.014,0.25]
[1643447647615,0.00134373,96.042,96.023,6.0]
[1643447647817,0.00134373,96.042,96.024,103.65]
[1643447648019,0.00134373,96.042,96.034,6.0]
[1643447648519,0.00134373,96.042,96.024,0.25]
[1643447648717,0.00134373,96.042,95.998,103.4]
[1643447648718,0.00134373,96.042,96.008,1.44831414]
[1643447648918,0.00134373,96.042,96.011,0.25]
[1643447649120,0.00134373,96.042,96.014,6.0]
[1643447649317,0.00134373,96.042,96.015,0.25]
[1643447649518,0.00134373,96.042,96.021,6.0]
[1643447649719,0.00134373,96.042,96.022,23.4821]
[1643447649918,0.00134373,96.042,96.022,29.7321]
[1643447651121,0.00134373,96.042,96.022,29.4821]
[1643447651523,0.00134373,96.042,96.023,103.4]
[1643447651923,0.00134373,96.042,96.034,103.4]
[1643447652122,0.00134373,96.042,96.036,103.4]
[1643447652524,0.00134373,96.042,96.035,23.0357]
[1643447652722,0.00134373,96.042,96.036,103.65]
[1643447654323,0.520778,96.098,96.036,103.65]
[1643447654523,0.520778,96.098,96.046,6.0]
[1643447655023,0.520778,96.098,96.047,127.9097]
[1643447655528,0.520778,96.098,96.05,15.08]
[1643447655725,0.520778,96.098,96.051,103.4]
[1643447655923,0.520778,96.098,96.051,106.32798446]
[1643447656327,0.00292486,96.114,96.052,134.74798446]
[1643447656526,0.00292486,96.114,96.062,6.0]
[1643447656724,0.00292486,96.114,96.07,15.08]
[1643447657925,0.00292486,96.114,96.071,0.25]
[1643447658725,0.00292486,96.114,96.071,25.2289]
[1643447659425,0.00292486,96.114,96.07,15.08]
[1643447659627,0.00292486,96.114,96.032,1.44831414]
[1643447659825,0.00292486,96.114,96.025,22.5855]
[1643447660029,6.0,96.11,96.025,22.5855]
[1643447660525,6.0,96.102,96.025,22.5855]
[1643447660930,6.0,96.099,96.025,22.5855]
[1643447661328,0.25,96.098,96.025,22.5855]
[1643447662428,0.25,96.101,96.026,0.25]
[1643447663029,0.25,96.101,96.026,103.65]
[1643447663430,0.25,96.101,96.025,22.5855]
[1643447663627,0.25,96.101,96.01,15.08]
[1643447664028,0.25,96.101,96.01,118.48]
[1643447664630,0.25,96.101,96.011,23.3465]
[1643447665030,6.0,96.102,96.011,23.3465]
[1643447665231,6.0,96.102,96.025,23.7203]
[1643447665530,6.0,96.102,96.026,103.4]
[1643447665731,6.0,96.102,96.025,23.7203]
[1643447665934,6.0,96.102,96.025,23.4703]
[1643447666135,6.0,96.102,96.026,0.25]
[1643447666331,0.25,96.101,96.026,0.25]
[1643447666932,0.25,96.101,96.025,23.4703]
[1643447667333,2.95669142,96.1,96.025,23.4703]
[1643447667534,6.0,96.09,96.025,23.4703]
[1643447667737,38.7730878,96.089,96.01,103.4]
[1643447667934,39.0230878,96.089,96.01,103.4]
[1643447668141,6.0,96.079,96.01,103.4]
[1643447668334,0.25,96.078,96.01,103.4]
[1643447668935,0.25,96.078,96.012,103.4]
[1643447669537,6.25,96.078,96.011,24.9978]
[1643447669738,6.25,96.078,96.0,118.48]
[1643447670558,6.25,96.078,96.001,23.8074]
[1643447670762,6.25,96.078,96.002,103.4]
[1643447671460,6.0,96.078,96.013,103.4]
[1643447671662,6.0,96.079,96.013,103.4]
[1643447672362,6.0,96.079,96.014,25.1304]
[1643447672762,0.25,96.078,96.014,24.8804]
[1643447673162,6.0,96.079,96.015,0.25]
[1643447674164,6.0,96.099,96.014,24.8804]
[1643447674662,0.25,96.098,96.002,1.44831414]
[1643447674862,0.25,96.098,96.001,1.44831414]
[1643447674863,25.1759,96.098,96.001,1.44831414]
[1643447675063,6.0,96.088,95.986,1.44831414]
[1643447675264,0.25,96.087,95.984,1.44831414]
[1643447675462,35.67443783,96.079,95.984,1.44831414]
[1643447675868,6.0,96.069,95.976,1.44831414]
[1643447676066,40.2212246,96.059,95.977,1.44831414]
[1643447676267,0.25,96.058,95.976,1.44831414]
[1643447676464,0.25,96.058,95.966,24.199]
[1643447676465,6.0,96.049,95.983,1.44831414]
[1643447676865,0.25,96.048,95.983,1.44831414]
[1643447677267,0.25,96.048,95.967,103.4]
[1643447677268,6.0,96.039,95.984,1.69831414]
[1643447677668,0.25,96.038,95.984,1.69831414]
[1643447677868,0.25,96.038,95.984,0.25]
[1643447678770,0.25,96.048,95.983,0.25]
[1643447678967,0.25,96.048,95.985,1.44831414]
[1643447679368,0.25,96.048,95.986,0.25]
[1643447679968,0.25,96.048,95.983,1.44831414]
[1643447680170,0.25,96.048,95.979,1.44831414]
[1643447680468,6.25,96.048,95.977,1.44831414]
[1643447680870,6.25,96.048,95.976,1.44831414]
[1643447681069,6.25,96.048,95.975,1.44831414]
[1643447681272,6.25,96.048,95.977,6.0]
[1643447681470,0.25,96.048,95.977,6.0]
[1643447681669,6.0,96.049,95.978,23.4328]
[1643447681869,6.0,96.049,95.979,103.4]
[1643447682271,6.0,96.049,95.98,0.25]
[1643447683273,0.25,96.048,95.98,0.25]
[1643447684380,0.25,96.048,95.978,23.4328]
[1643447685378,0.25,96.048,95.979,103.65]
[1643447685578,0.25,96.048,95.979,0.25]
[1643447686381,0.25,96.048,95.978,23.4328]
[1643447687281,38.72225012,96.048,95.978,23.4328]
[1643447687681,6.0,96.038,95.978,23.4328]
[1643447687882,0.25,96.037,95.966,23.949]
[1643447688481,6.25,96.037,95.966,23.949]
[1643447689309,6.25,96.037,95.962,1.44831414]
[1643447689511,6.25,96.037,95.967,1.44831414]
[1643447690311,6.25,96.037,95.966,1.44831414]
[1643447690513,6.25,96.037,95.969,1.44831414]
[1643447690713,6.25,96.037,95.968,1.44831414]
[1643447691114,32.92388041,96.029,95.961,1.44831414]
[1643447691319,0.25,96.028,95.96,1.44831414]
[1643447691515,6.0,96.019,95.96,1.44831414]
[1643447691714,6.0,96.019,95.959,1.44831414]
[1643447692013,0.25,96.018,95.959,1.44831414]
[1643447692416,0.25,96.018,95.958,1.44831414]
[1643447693014,0.25,96.029,95.957,1.44831414]
[1643447693218,0.25,96.029,95.959,1.44831414]
[1643447693816,0.25,96.029,95.96,1.44831414]
[1643447694618,6.0,96.023,95.96,1.44831414]
[1643447694921,0.25,96.022,95.959,1.44831414]
[1643447695118,0.25,96.022,95.962,1.44831414]
[1643447695417,0.25,96.022,95.963,0.25]
[1643447695619,0.25,96.022,95.965,1.44831414]
[1643447695818,0.25,96.022,95.972,6.0]
[1643447696118,0.25,96.036,95.966,1.44831414]
[1643447696317,0.25,96.036,95.967,0.25]
[1643447696523,0.25,96.036,95.967,1.69831414]
[1643447696921,0.25,96.036,95.971,1.44831414]
[1643447697321,0.25,96.036,95.969,103.4]
[1643447697521,0.25,96.036,95.969,104.84831414]
[1643447697722,0.25,96.036,95.973,1.44831414]
[1643447697922,0.25,96.036,95.972,1.44831414]
[1643447698124,15.63,96.06,95.982,6.0]
[1643447698324,1.41828145,96.087,95.983,24.1683]
[1643447698527,22.9059,96.099,96.0,1.44831414]
[1643447698923,22.9059,96.099,96.011,103.4]
[1643447699226,18.41337523,96.124,96.021,6.0]
[1643447699423,3.48824982,96.129,96.022,23.0576]
[1643447699622,3.48824982,96.129,96.022,30.75591414]
[1643447699823,3.48824982,96.129,96.023,1.69831414]
[1643447700023,23.2746,96.128,96.033,6.0]
[1643447700225,34.8148377,96.124,96.033,6.0]
[1643447700423,34.8148377,96.124,96.034,6.25]
[1643447700624,6.0,96.114,96.044,6.0]
[1643447700825,6.0,96.114,96.045,23.0197]
[1643447701624,0.25,96.113,96.045,23.0197]
[1643447702024,6.0,96.114,96.046,103.4]
[1643447702424,6.0,96.118,96.056,6.0]
[1643447702625,6.0,96.118,96.045,23.0197]
[1643447703027,42.40482721,96.117,96.045,23.0197]
[1643447703426,6.0,96.107,96.045,23.0197]
[1643447703834,6.0,96.107,96.046,103.4]
[1643447704227,6.0,96.107,96.047,0.25]
[1643447704627,42.40482721,96.117,96.047,0.25]
[1643447705828,42.40482721,96.117,96.046,103.4]
[1643447706231,0.25,96.116,96.046,103.4]
[1643447706827,0.25,96.117,96.046,103.4]
[1643447707230,0.25,96.117,96.047,0.25]
[1643447707630,6.0,96.114,96.047,0.25]
[1643447707928,0.25,96.113,96.047,0.25]
[1643447709534,0.25,96.113,96.057,103.4]
[1643447710332,0.25,96.113,96.045,22.7697]
[1643447710534,33.26221236,96.103,96.023,24.4332]
[1643447710933,6.0,96.093,96.023,24.4332]
[1643447711437,3.20669142,96.092,96.023,24.4332]
[1643447711635,6.25,96.092,96.023,24.4332]
[1643447711838,0.25,96.092,96.023,24.4332]
[1643447712638,0.25,96.092,96.009,103.4]
[1643447712838,44.59787286,96.099,96.009,103.4]
[1643447713038,6.0,96.089,96.009,103.4]
[1643447713239,0.25,96.088,96.009,103.4]
[1643447713538,6.0,96.082,96.009,103.4]
[1643447713738,43.89181586,96.081,96.009,103.4]
[1643447713938,44.14181586,96.081,96.009,103.4]
[1643447714139,6.0,96.071,95.987,1.44831414]
[1643447714439,0.25,96.07,95.987,0.25]
[1643447714641,6.25,96.07,95.987,0.25]
[1643447715264,6.25,96.07,95.982,0.25]
[1643447716167,6.25,96.07,95.981,47.2923]
[1643447717867,6.25,96.07,95.982,0.25]
[1643447718366,6.25,96.07,95.981,47.2923]
[1643447718767,6.25,96.07,95.982,0.25]
[1643447719466,0.25,96.07,95.982,0.25]
[1643447719867,0.25,96.079,95.982,0.25]
[1643447720268,2.95669142,96.078,95.981,47.2923]
[1643447720670,0.25,96.077,95.982,0.25]
[1643447720969,6.0,96.068,95.981,47.2923]
[1643447721370,6.0,96.07,95.982,0.25]
[1643447722572,0.25,96.069,95.982,1.69831414]
[1643447722771,0.25,96.069,95.984,1.44831414]
[1643447723172,0.25,96.079,95.985,0.25]
[1643447723372,0.25,96.079,95.985,1.69831414]
[1643447723574,54.0532,96.08,95.985,1.69831414]
[1643447724173,6.0,96.07,95.985,1.69831414]
[1643447724374,6.0,96.07,95.986,1.44831414]
[1643447724574,6.0,96.07,95.985,1.69831414]
[1643447724777,0.25,96.069,95.986,0.25]
[1643447725074,0.25,96.069,95.983,1.44831414]
[1643447725275,0.25,96.069,95.984,1.44831414]
[1643447725476,0.25,96.069,95.989,1.44831414]
[1643447725675,6.0,96.07,95.989,1.44831414]
[1643447725875,6.0,96.07,95.994,1.44831414]
[1643447726075,6.0,96.07,95.997,1.44831414]
[1643447726277,6.0,96.07,95.998,1.69831414]
[1643447726576,6.0,96.07,95.997,1.44831414]
[1643447726778,0.25,96.069,95.998,0.25]
[1643447726978,6.0,96.066,95.998,0.25]
[1643447727179,0.25,96.065,95.997,1.44831414]
[1643447727382,0.25,96.065,95.998,0.25]
[1643447728180,0.25,96.065,95.998,1.69831414]
[1643447728987,0.25,96.065,96.008,6.0]
[1643447729182,0.25,96.069,96.008,6.0]
[1643447729382,0.25,96.069,96.009,0.25]
[1643447730384,0.25,96.069,96.003,0.25]
[1643447731183,0.25,96.069,96.003,1.69831414]
[1643447731384,0.25,96.069,96.004,0.25]
[1643447731584,0.25,96.069,96.002,1.44831414]
[1643447731785,0.25,96.069,96.003,0.25]
[1643447732085,0.25,96.069,96.003,1.44831414]
[1643447732284,2.95669142,96.068,95.987,1.44831414]
[1643447732487,36.3387764,96.067,95.986,1.44831414]
[1643447732684,6.0,96.058,95.985,1.44831414]
[1643447732886,6.0,96.057,95.984,1.44831414]
[1643447733086,6.0,96.05,95.984,1.44831414]
[1643447733286,0.25,96.049,95.985,1.69831414]
[1643447733489,6.0,96.047,95.987,1.44831414]
[1643447733687,0.25,96.049,95.987,1.44831414]
[1643447733890,2.95669142,96.048,95.987,1.44831414]
[1643447734089,6.0,96.038,95.979,1.44831414]
[1643447734290,0.25,96.037,95.969,1.44831414]
[1643447734490,9.20669142,96.037,95.968,1.44831414]
[1643447734789,2.95669142,96.036,95.965,1.44831414]
[1643447734993,6.0,96.026,95.965,1.44831414]
[1643447735389,6.25,96.025,95.966,1.44831414]
[1643447735790,6.25,96.025,95.965,1.44831414]
[1643447735990,6.25,96.025,95.961,1.44831414]
[1643447736592,6.25,96.025,95.96,1.44831414]
[1643447736991,6.0,96.024,95.956,1.44831414]
[1643447737391,6.0,96.015,95.955,1.44831414]
[1643447737595,33.27417989,96.015,95.955,1.44831414]
[1643447737793,0.25,96.014,95.954,1.44831414]
[1643447737993,6.0,96.005,95.954,1.44831414]
[1643447738193,6.0,96.005,95.952,1.44831414]
[1643447738393,0.25,96.004,95.952,1.44831414]
[1643447738594,0.25,96.004,95.955,1.44831414]
[1643447738993,0.25,96.004,95.952,1.44831414]
[1643447739596,0.25,96.004,95.947,1.44831414]
[1643447739796,0.25,96.004,95.949,1.44831414]
[1643447740600,0.25,96.004,95.954,1.44831414]
[1643447740798,0.25,96.004,95.956,1.44831414]
[1643447740999,0.25,96.004,95.952,1.44831414]
[1643447741202,0.25,96.004,95.951,1.44831414]
[1643447741400,0.25,96.019,95.95,1.44831414]
[1643447741618,0.25,96.019,95.951,1.44831414]
[1643447742019,6.0,96.011,95.949,1.44831414]
[1643447742219,6.0,96.011,95.948,1.44831414]
[1643447742420,0.25,96.01,95.948,1.44831414]
[1643447742621,0.25,96.01,95.951,1.44831414]
[1643447743021,0.25,96.01,95.948,1.44831414]
[1643447743222,0.25,96.01,95.947,1.44831414]
[1643447743520,0.25,96.01,95.946,1.44831414]
[1643447743721,0.25,96.01,95.945,1.44831414]
[1643447743929,0.25,96.01,95.946,1.44831414]
[1643447744120,0.25,96.01,95.945,1.44831414]
[1643447744320,0.25,96.01,95.953,1.44831414]
[1643447744521,6.25,96.01,95.949,1.44831414]
[1643447744723,6.25,96.01,95.942,24.4428]
[1643447744724,6.25,96.01,95.948,1.44831414]
[1643447745121,6.25,96.01,95.947,1.44831414]
[1643447746323,6.25,96.01,95.946,1.44831414]
[1643447747124,6.25,96.01,95.945,1.44831414]
[1643447747725,6.25,96.01,95.944,1.44831414]
[1643447749030,6.25,96.01,95.943,1.44831414]
[1643447749227,23.7165,96.009,95.942,1.44831414]
[1643447749428,26.67319142,96.009,95.939,1.44831414]
[1643447749630,33.37506212,95.998,95.934,1.44831414]
[1643447749828,0.25,95.997,95.921,1.44831414]
[1643447750029,6.0,95.988,95.921,1.44831414]
[1643447750229,6.0,95.988,95.907,1.44831414]
[1643447750429,6.25,95.987,95.904,1.44831414]
[1643447750635,39.70455835,95.976,95.905,1.44831414]
[1643447750830,0.25,95.975,95.903,1.44831414]
[1643447751031,6.0,95.966,95.903,1.44831414]
[1643447751435,6.0,95.966,95.877,2.88624122]
[1643447751436,6.25,95.965,95.898,1.44831414]
[1643447752031,6.25,95.965,95.897,1.44831414]
[1643447752230,6.25,95.965,95.896,1.44831414]
[1643447752432,6.25,95.965,95.893,1.44831414]
[1643447752632,6.25,95.965,95.894,1.44831414]
[1643447752833,6.25,95.965,95.891,1.44831414]
[1643447753033,6.25,95.965,95.889,1.44831414]
[1643447753432,6.25,95.965,95.89,1.44831414]
[1643447754033,6.25,95.965,95.893,1.44831414]
[1643447754333,6.25,95.965,95.877,0.25]
[1643447754334,6.25,95.965,95.894,1.69831414]
[1643447754535,6.0,95.96,95.894,1.44831414]
[1643447754735,6.0,95.955,95.898,1.44831414]
[1643447754932,0.25,95.959,95.897,1.44831414]
[1643447755135,0.25,95.954,95.897,1.44831414]
[1643447755334,0.25,95.959,95.897,1.44831414]
[1643447755535,0.25,95.959,95.896,1.44831414]
[1643447755935,0.25,95.959,95.869,2.88815684]
[1643447755936,2.95669142,95.958,95.887,1.44831414]
[1643447756238,6.0,95.948,95.888,1.44831414]
[1643447756636,0.25,95.947,95.89,1.44831414]
[1643447756837,0.25,95.947,95.891,1.44831414]
[1643447757037,0.25,95.947,95.892,0.25]
[1643447757237,0.25,95.947,95.893,1.44831414]
[1643447757640,0.25,95.949,95.893,1.44831414]
[1643447757837,0.25,95.949,95.876,103.4]
[1643447757838,0.25,95.949,95.891,1.44831414]
[1643447758038,0.25,95.949,95.89,1.44831414]
[1643447758341,0.25,95.964,95.89,1.44831414]
[1643447758740,6.0,95.965,95.891,1.44831414]
[1643447758938,6.0,95.965,95.896,1.44831414]
[1643447759139,6.0,95.958,95.896,1.44831414]
[1643447759338,2.95669142,95.994,95.897,1.44831414]
[1643447759542,46.5974,96.007,95.907,6.0]
[1643447759839,46.5974,96.007,95.918,1.44831414]
[1643447760039,46.5974,96.007,95.928,6.0]
[1643447760439,39.86684148,96.006,95.928,6.0]
[1643447760640,39.86684148,96.006,95.919,1.44831414]
[1643447760848,6.0,95.996,95.924,0.25]
[1643447761041,6.0,95.996,95.929,6.0]
[1643447761247,6.0,95.996,95.924,0.25]
[1643447761942,6.0,95.996,95.919,6.0]
[1643447762143,0.25,95.995,95.928,6.0]
[1643447762343,0.25,95.995,95.929,0.25]
[1643447763346,0.25,95.995,95.929,1.44831414]
[1643447763543,0.25,95.995,95.926,1.44831414]
[1643447763747,23.7127,95.995,95.913,1.44831414]
[1643447764145,6.0,95.985,95.914,1.69831414]
[1643447764345,6.0,95.985,95.923,1.44831414]
[1643447764545,6.0,95.981,95.924,1.44831414]
[1643447764746,6.0,95.981,95.925,1.44831414]
[1643447765444,6.0,95.997,95.92,6.0]
[1643447765644,34.21774503,95.996,95.92,7.44831414]
[1643447765847,40.21774503,95.996,95.92,7.44831414]
[1643447766050,0.25,95.995,95.922,1.44831414]
[1643447766247,0.25,95.995,95.916,1.44831414]
[1643447766446,0.25,95.995,95.913,1.44831414]
[1643447766447,3.20669142,95.995,95.913,1.44831414]
[1643447766846,6.0,95.985,95.914,1.44831414]
[1643447767046,6.0,95.985,95.91,23.0641]
[1643447767047,6.0,95.984,95.912,1.44831414]
[1643447767250,6.25,95.984,95.912,1.44831414]
[1643447767447,6.25,95.984,95.916,1.44831414]
[1643447767650,6.25,95.984,95.915,1.44831414]
[1643447767950,2.95669142,95.983,95.914,1.44831414]
[1643447768149,44.42044317,95.979,95.913,1.44831414]
[1643447768350,6.0,95.973,95.913,1.44831414]
[1643447768548,6.0,95.969,95.913,1.44831414]
[1643447768747,0.25,95.968,95.913,1.44831414]
[1643447768949,6.0,95.969,95.913,1.44831414]
[1643447769147,6.0,95.969,95.892,106.28904889]
[1643447769148,0.25,95.968,95.915,1.44831414]
[1643447769347,0.25,95.968,95.921,1.44831414]
[1643447769749,0.25,95.968,95.922,0.25]
[1643447769951,6.0,95.985,95.925,1.44831414]
[1643447770250,0.25,95.984,95.928,1.44831414]
[1643447770450,0.25,95.984,95.924,1.44831414]
[1643447770651,0.25,95.984,95.923,1.44831414]
[1643447770855,6.0,95.976,95.924,0.25]
[1643447771050,0.25,95.984,95.926,1.44831414]
[1643447771251,6.0,95.996,95.927,1.69831414]
[1643447771451,6.0,95.996,95.932,1.44831414]
[1643447771750,6.0,95.996,95.933,1.69831414]
[1643447772049,6.0,95.988,95.935,1.44831414]
[1643447772250,6.0,95.988,95.936,0.25]
[1643447772453,6.0,95.988,95.934,1.44831414]
[1643447772650,6.0,95.996,95.934,1.44831414]
[1643447772950,6.0,95.996,95.935,0.25]
[1643447773353,46.48325626,95.995,95.936,1.44831414]
[1643447773550,6.0,95.985,95.936,1.44831414]
[1643447773751,0.25,95.984,95.937,0.25]
[1643447774751,0.25,95.984,95.936,1.44831414]
[1643447774949,43.44700715,95.995,95.936,1.44831414]
[1643447775150,43.44700715,95.995,95.937,1.44831414]
[1643447775350,6.0,95.985,95.934,1.44831414]
[1643447775752,0.25,95.984,95.935,0.25]
[1643447775956,0.25,95.984,95.937,1.44831414]
[1643447776253,0.25,95.984,95.938,1.44831414]
[1643447776854,0.25,95.99,95.938,1.44831414]
[1643447777258,0.25,95.99,95.932,1.44831414]
[1643447778858,0.25,95.99,95.935,1.44831414]
[1643447779261,0.25,95.99,95.937,1.44831414]
[1643447779860,0.25,95.99,95.938,1.44831414]
[1643447780459,0.25,95.99,95.939,1.44831414]
[1643447780864,0.25,95.99,95.938,1.44831414]
[1643447781064,0.25,95.99,95.94,1.44831414]
[1643447781862,0.25,95.99,95.941,1.44831414]
[1643447782984,0.25,95.99,95.936,1.44831414]
[1643447783184,15.633,96.04,95.936,1.44831414]
[1643447783384,15.633,96.04,95.946,1.44831414]
[1643447783588,6.0,96.03,95.958,1.44831414]
[1643447783786,6.0,96.03,95.96,1.44831414]
[1643447783986,6.0,96.029,95.962,1.44831414]
[1643447784185,6.0,96.029,95.961,1.44831414]
[1643447784386,6.0,96.029,95.962,1.44831414]
[1643447784686,6.0,96.02,95.962,1.44831414]
[1643447784886,6.0,96.02,95.963,0.25]
[1643447785086,0.25,96.019,95.963,1.69831414]
[1643447785286,6.0,96.029,95.963,1.69831414]